bitfinex/quotes_SOLUSD_20260202
["timestamp","ask_amount","ask_price","bid_price","bid_amount"]
[1770006315233,14.85348354,101.17,101.12,19.0742825]
[1770006315450,19.14372293,101.18,101.14,14.85348354]
[1770006315738,19.14372293,101.18,101.13,14.85348354]
[1770006315934,19.14372293,101.18,101.05,4.27527085]
[1770006315935,4.29023939,101.23,101.17,14.85348354]
[1770006316121,15.23642972,101.26,101.17,14.85348354]
[1770006316122,4.29023939,101.21,101.17,14.85348354]
[1770006316535,4.29023939,101.21,101.18,14.85348354]
[1770006316728,19.14372293,101.21,101.16,14.85348354]
[1770006316924,42.35348354,101.22,101.18,14.85348354]
[1770006317131,46.64372293,101.22,101.17,14.85348354]
[1770006317322,14.85348354,101.21,101.17,14.85348354]
[1770006317522,27.5,101.22,101.18,19.0742825]
[1770006317737,27.5,101.22,101.2,14.85348354]
[1770006318040,14.85348354,101.23,101.18,19.0742825]
[1770006318431,19.14372293,101.24,101.19,14.85348354]
[1770006318625,42.35348354,101.23,101.18,4.22079896]
[1770006318940,46.64372293,101.23,101.18,19.0742825]
[1770006319143,31.79023939,101.23,101.19,14.85348354]
[1770006319342,4.29023939,101.23,101.2,14.85348354]
[1770006319521,42.35348354,101.24,101.2,14.85348354]
[1770006319846,27.5,101.24,101.2,14.85348354]
[1770006320047,27.5,101.24,101.21,14.85348354]
[1770006320344,27.5,101.24,101.19,4.22079896]
[1770006320540,19.14372293,101.25,101.2,14.85348354]
[1770006320853,46.64372293,101.24,101.19,14.85348354]
[1770006321136,14.85348354,101.26,101.21,19.0742825]
[1770006321334,36.06551024,101.27,101.19,19.0742825]
[1770006321335,14.85348354,101.24,101.19,19.0742825]
[1770006321542,14.85348354,101.23,101.19,14.85348354]
[1770006321738,14.85348354,101.23,101.18,14.85348354]
[1770006321920,42.35348354,101.23,101.18,14.85348354]
[1770006322117,34.19527085,101.27,101.11,4.27527085]
[1770006322118,14.85348354,101.25,101.2,14.85348354]
[1770006322323,14.85348354,101.25,101.19,4.22079896]
[1770006322324,42.35348354,101.25,101.21,14.85348354]
[1770006322537,27.5,101.25,101.21,14.85348354]
[1770006322726,19.14372293,101.24,101.19,19.0742825]
[1770006322925,4.29023939,101.29,101.23,14.85348354]
[1770006323126,4.29023939,101.29,101.23,4.22079896]
[1770006323427,14.85348354,101.27,101.23,14.85348354]
[1770006323630,19.14372293,101.25,101.2,14.85348354]
[1770006324037,14.85348354,101.26,101.22,14.85348354]
[1770006324241,46.64372293,101.29,101.23,4.22079896]
[1770006324444,42.35348354,101.29,101.25,14.85348354]
[1770006324738,19.14372293,101.28,101.23,14.85348354]
[1770006324944,14.85348354,101.27,101.22,19.0742825]
[1770006325148,14.85348354,101.27,101.23,14.85348354]
[1770006325339,42.35348354,101.29,101.25,14.85348354]
[1770006325536,46.64372293,101.29,101.24,4.22079896]
[1770006325746,46.64372293,101.29,101.24,19.0742825]
[1770006326827,14.85348354,101.3,101.25,14.85348354]
[1770006327035,27.5,101.3,101.26,14.85348354]
[1770006327249,19.14372293,101.29,101.24,19.0742825]
[1770006327548,14.85348354,101.28,101.24,14.85348354]
[1770006327743,14.85348354,101.27,101.21,4.22079896]
[1770006327922,14.85348354,101.27,101.22,19.0742825]
[1770006328125,42.35348354,101.26,101.22,4.22079896]
[1770006328339,27.48,101.26,101.21,9.76581898]
[1770006328545,9.76581898,101.25,101.21,9.76581898]
[1770006328750,9.76581898,101.24,101.2,4.22079896]
[1770006328947,31.77023939,101.26,101.17,9.76581898]
[1770006328948,9.76581898,101.22,101.17,9.76581898]
[1770006329251,9.76581898,101.21,101.17,9.76581898]
[1770006329547,27.48,101.22,101.19,9.76581898]
[1770006329850,37.24581898,101.22,101.17,9.76581898]
[1770006330047,37.24581898,101.22,101.18,9.76581898]
[1770006330245,14.05605837,101.23,101.17,4.22079896]
[1770006330429,19.14905616,101.23,101.18,19.07961573]
[1770006330623,46.62905616,101.22,101.17,14.85881677]
[1770006330922,24.68766709,101.27,101.18,14.85881677]
[1770006330923,46.62905616,101.23,101.18,14.85881677]
[1770006331136,31.77023939,101.23,101.19,14.85881677]
[1770006331340,4.29023939,101.23,101.19,14.85881677]
[1770006331525,42.33881677,101.24,101.2,14.85881677]
[1770006331526,27.48,101.24,101.2,14.85881677]
[1770006331734,31.77023939,101.24,101.14,14.85881677]
[1770006333142,27.48,101.24,101.15,4.22079896]
[1770006333752,31.77023939,101.24,101.15,4.22079896]
[1770006333922,19.14905616,101.23,101.18,14.85881677]
[1770006334324,19.14905616,101.23,101.19,14.85881677]
[1770006334648,4.29023939,101.21,101.16,4.22079896]
[1770006334828,4.29023939,101.23,101.19,14.85881677]
[1770006335335,4.27527085,101.27,101.1,5.36086188]
[1770006335336,4.29023939,101.25,101.22,14.85881677]
[1770006335737,170.09023939,101.29,101.24,19.07961573]
[1770006335942,4.29023939,101.29,101.18,4.22079896]
[1770006336135,4.29023939,101.29,101.25,14.85881677]
[1770006336941,27.48,101.32,101.25,14.85881677]
[1770006336942,4.29023939,101.31,101.27,14.85881677]
[1770006337148,165.8,101.34,101.2,4.27527085]
[1770006337149,4.29023939,101.33,101.26,4.22079896]
[1770006337337,4.29023939,101.32,101.28,14.85881677]
[1770006337534,4.29023939,101.32,101.3,14.85881677]
[1770006337850,4.29023939,101.32,101.29,14.85881677]
[1770006338229,4.29023939,101.32,101.27,4.43851048]
[1770006338559,4.209318,101.33,101.29,14.85881677]
[1770006338849,31.689318,101.33,101.29,14.85881677]
[1770006339150,0.1,101.36,101.32,4.43851048]
[1770006339528,0.1,101.36,101.34,14.85881677]
[1770006339733,4.5093088,101.39,101.35,14.85881677]
[1770006339933,0.2999908,101.39,101.36,14.85881677]
[1770006340129,0.2999908,101.39,101.35,4.43851048]
[1770006340349,0.2999908,101.39,101.35,14.85881677]
[1770006340537,4.5093088,101.39,101.35,14.85881677]
[1770006340725,4.209318,101.37,101.33,14.85881677]
[1770006340925,19.06813477,101.36,101.31,19.29732725]
[1770006341130,4.209318,101.34,101.28,14.85881677]
[1770006341439,14.85881677,101.34,101.3,4.43851048]
[1770006341638,14.85881677,101.35,101.3,19.29732725]
[1770006341844,4.209318,101.36,101.3,19.29732725]
[1770006342148,4.209318,101.33,101.28,19.29732725]
[1770006342349,14.85881677,101.33,101.29,4.43851048]
[1770006342527,4.27527085,101.36,101.31,4.43851048]
[1770006342730,166.0999908,101.39,101.35,14.85881677]
[1770006342731,0.2999908,101.39,101.35,14.85881677]
[1770006343035,4.209318,101.38,101.34,14.85881677]
[1770006343229,4.209318,101.38,101.35,14.85881677]
[1770006343427,0.2999908,101.39,101.34,4.43851048]
[1770006343747,4.5093088,101.39,101.34,4.43851048]
[1770006343948,19.06813477,101.38,101.33,14.85881677]
[1770006344141,0.2999908,101.39,101.36,14.85881677]
[1770006344343,0.2999908,101.39,101.35,19.29732725]
[1770006345536,4.209318,101.38,101.34,14.85881677]
[1770006345734,15.15880757,101.39,101.34,19.29732725]
[1770006345930,15.15880757,101.39,101.28,9.63613273]
[1770006345931,0.2999908,101.39,101.35,4.43851048]
[1770006346159,4.27527085,101.43,101.28,9.63613273]
[1770006346160,7.63753691,101.47,101.39,4.43851048]
[1770006346362,7.63753691,101.47,101.43,14.85881677]
[1770006346363,6.68146837,101.47,101.43,14.85881677]
[1770006346540,6.68146837,101.47,101.42,4.43851048]
[1770006346739,1.52051895,101.47,101.42,4.43851048]
[1770006346950,14.85881677,101.46,101.41,14.85881677]
[1770006347144,27.46,101.47,101.27,4.0965778]
[1770006347145,4.27527085,101.44,101.27,4.0965778]
[1770006347436,0.66697027,101.28,101.24,4.0965778]
[1770006347638,14.85881677,101.3,101.26,4.0965778]
[1770006347948,27.46,101.36,101.3,4.0965778]
[1770006348439,27.46,101.36,101.31,18.95539457]
[1770006348634,27.46,101.36,101.23,49.50370437]
[1770006348635,14.85881677,101.34,101.29,4.0965778]
[1770006348834,14.85881677,101.32,101.27,4.0965778]
[1770006349146,27.46,101.31,101.27,4.0965778]
[1770006349450,27.46,101.32,101.27,4.0965778]
[1770006349636,14.85881677,101.28,101.23,4.0965778]
[1770006349842,42.31881677,101.27,101.23,4.0965778]
[1770006350043,14.85881677,101.26,101.23,4.0965778]
[1770006350352,14.85881677,101.26,101.11,0.2]
[1770006350353,14.85881677,101.24,101.21,4.0965778]
[1770006350555,4.42758686,101.26,101.19,4.0965778]
[1770006350741,14.85881677,101.23,101.19,4.0965778]
[1770006351168,4.42758686,101.27,101.2,4.0965778]
[1770006351360,24.67192452,101.33,101.11,8.15649671]
[1770006351361,14.85881677,101.23,101.18,4.0965778]
[1770006352136,4.42758686,101.24,101.18,18.95539457]
[1770006352358,42.31881677,101.27,101.21,18.95539457]
[1770006352554,4.42758686,101.26,101.2,14.85881677]
[1770006352857,14.85881677,101.22,101.17,4.0965778]
[1770006353059,27.46,101.23,101.19,14.85881677]
[1770006353263,27.46,101.23,101.19,18.95539457]
[1770006353567,42.31881677,101.23,101.19,4.0965778]
[1770006353863,42.31881677,101.23,101.18,4.0965778]
[1770006354060,27.46,101.23,101.19,4.0965778]
[1770006354267,14.85881677,101.25,101.19,18.95539457]
[1770006354556,4.42758686,101.25,101.18,4.0965778]
[1770006354739,4.42758686,101.24,101.18,18.95539457]
[1770006354937,42.31881677,101.27,101.21,18.95539457]
[1770006355350,4.42758686,101.28,101.23,14.85881677]
[1770006355741,4.42758686,101.28,101.23,18.95539457]
[1770006355947,4.42758686,101.28,101.24,14.85881677]
[1770006356275,19.28640363,101.28,101.23,4.0965778]
[1770006356579,4.42758686,101.28,101.23,18.95539457]
[1770006356757,4.42758686,101.28,101.18,4.27527085]
[1770006356758,4.42758686,101.3,101.25,18.95539457]
[1770006357481,27.46,101.31,101.27,14.85881677]
[1770006357955,27.46,101.31,101.26,4.0965778]
[1770006357956,27.46,101.31,101.26,18.95539457]
[1770006358358,27.46,101.31,101.27,14.85881677]
[1770006358859,27.46,101.31,101.28,14.85881677]
[1770006359048,27.46,101.31,101.27,4.0965778]
[1770006359244,27.46,101.31,101.27,18.95539457]
[1770006359555,27.46,101.31,101.28,18.95539457]
[1770006359860,27.46,101.31,101.28,4.0965778]
[1770006360048,4.5,101.35,101.3,14.85881677]
[1770006360249,4.5,101.37,101.32,14.85881677]
[1770006360452,4.5,101.37,101.33,14.85881677]
[1770006361056,4.5,101.41,101.36,14.85881677]
[1770006361255,5.16724765,101.44,101.4,14.85881677]
[1770006361256,4.5,101.43,101.4,14.85881677]
[1770006361569,4.5,101.45,101.41,14.85881677]
[1770006361866,6.42857547,101.51,101.37,4.27527085]
[1770006361867,4.5,101.49,101.37,4.27527085]
[1770006362045,11.58990525,101.51,101.48,14.85881677]
[1770006362248,4.5,101.55,101.45,4.27527085]
[1770006362462,4.5,101.54,101.41,55.57694336]
[1770006362666,4.5,101.52,101.41,4.27527085]
[1770006362845,4.5,101.53,101.45,14.85881677]
[1770006363052,4.5,101.53,101.46,14.85881677]
[1770006363258,19.35881677,101.49,101.4,4.27527085]
[1770006363452,0.21324235,101.46,101.4,4.13317085]
[1770006363645,4.5,101.49,101.44,14.85881677]
[1770006363848,19.35881677,101.48,101.42,14.85881677]
[1770006364170,0.14216157,101.45,101.4,14.85881677]
[1770006364476,14.85881677,101.53,101.33,49.55175244]
[1770006364477,4.5,101.5,101.44,14.85881677]
[1770006364777,4.5,101.5,101.45,14.85881677]
[1770006365066,4.5,101.55,101.49,14.85881677]
[1770006365259,4.5,101.55,101.5,14.85881677]
[1770006365452,4.5,101.53,101.43,4.27527085]
[1770006365648,0.21324235,101.5,101.47,14.85881677]
[1770006365970,4.5,101.47,101.33,57.36099347]
[1770006366273,4.5,101.47,101.4,14.85881677]
[1770006366274,15.00097834,101.46,101.4,14.85881677]
[1770006366477,15.00097834,101.46,101.41,14.85881677]
[1770006366653,19.50097834,101.46,101.4,14.85881677]
[1770006366863,0.14216157,101.45,101.41,14.85881677]
[1770006367380,4.64216157,101.45,101.4,14.85881677]
[1770006367544,0.21324235,101.42,101.32,27.44]
[1770006367745,4.85540392,101.42,101.38,14.85881677]
[1770006367952,0.14216157,101.4,101.36,14.85881677]
[1770006368178,19.50097834,101.4,101.34,14.85881677]
[1770006368346,4.64216157,101.4,101.34,14.80715133]
[1770006368556,0.14216157,101.4,101.38,14.80715133]
[1770006368764,0.14216157,101.4,101.39,14.80715133]
[1770006368959,0.14216157,101.4,101.38,14.80715133]
[1770006369164,0.14216157,101.4,101.35,4.27527085]
[1770006369165,0.14216157,101.4,101.39,14.80715133]
[1770006369371,0.14216157,101.4,101.38,14.80715133]
[1770006369568,0.14216157,101.4,101.36,14.80715133]
[1770006369875,0.14216157,101.4,101.38,14.80715133]
[1770006370071,0.14216157,101.41,101.38,14.80715133]
[1770006370271,0.14216157,101.41,101.39,14.80715133]
[1770006370455,4.5,101.44,101.4,14.80715133]
[1770006370661,4.5,101.46,101.41,14.80715133]
[1770006370901,4.5,101.45,101.42,14.80715133]
[1770006371071,4.64216157,101.44,101.33,82.35261432]
[1770006371382,4.64216157,101.44,101.4,14.80715133]
[1770006371577,4.64216157,101.42,101.38,14.80715133]
[1770006371957,4.5,101.41,101.33,27.44]
[1770006372159,0.14216157,101.4,101.3,5.36086188]
[1770006372370,0.14216157,101.4,101.37,14.80715133]
[1770006372757,0.14216157,101.4,101.3,5.36086188]
[1770006372958,0.14216157,101.4,101.39,14.80715133]
[1770006373356,4.5,101.45,101.39,14.80715133]
[1770006373575,4.5,101.45,101.42,14.80715133]
[1770006373761,4.5,101.45,101.37,4.27527085]
[1770006373977,4.5,101.45,101.36,4.27527085]
[1770006374277,4.5,101.45,101.39,14.80715133]
[1770006374779,4.5,101.44,101.39,14.80715133]
[1770006374985,4.5,101.46,101.36,4.27527085]
[1770006375185,4.5,101.46,101.41,14.80715133]
[1770006375478,4.5,101.45,101.41,14.80715133]
[1770006375982,4.5,101.45,101.42,14.80715133]
[1770006376186,4.5,101.45,101.37,4.27527085]
[1770006376485,4.5,101.45,101.42,14.80715133]
[1770006376673,0.21324235,101.46,101.43,14.80715133]
[1770006376880,4.71324235,101.46,101.4,14.80715133]
[1770006377076,0.21324235,101.46,101.43,14.80715133]
[1770006377385,0.14216157,101.44,101.4,14.80715133]
[1770006377592,4.64216157,101.44,101.4,14.80715133]
[1770006377788,0.14216157,101.44,101.42,14.80715133]
[1770006378085,0.14216157,101.42,101.36,31.67527085]
[1770006378278,0.14216157,101.42,101.4,14.80715133]
[1770006378579,0.21324235,101.46,101.41,14.80715133]
[1770006378767,0.21324235,101.46,101.43,14.80715133]
[1770006379358,0.21324235,101.46,101.42,14.80715133]
[1770006379564,19.52039368,101.46,101.36,27.4]
[1770006379762,4.5,101.45,101.4,14.80715133]
[1770006380059,4.5,101.44,101.36,27.4]
[1770006380266,4.5,101.44,101.36,31.67527085]
[1770006380464,0.14216157,101.43,101.39,14.80715133]
[1770006380789,4.64216157,101.43,101.33,76.93175244]
[1770006380990,4.64216157,101.4,101.36,14.80715133]
[1770006381288,4.64216157,101.4,101.29,5.36086188]
[1770006381289,4.64216157,101.4,101.29,27.38]
[1770006381464,0.14216157,101.34,101.29,14.80715133]
[1770006382195,0.21324235,101.38,101.24,14.80715133]
[1770006382196,4.64216157,101.29,101.24,14.80715133]
[1770006382389,4.64216157,101.29,101.21,4.27527085]
[1770006382575,4.64216157,101.29,101.25,14.80715133]
[1770006382781,0.14216157,101.29,101.26,14.80715133]
[1770006382986,0.14216157,101.29,101.27,14.80715133]
[1770006383293,4.5,101.34,101.28,14.80715133]
[1770006383497,4.5,101.34,101.29,14.80715133]
[1770006383667,4.5,101.32,101.28,14.80715133]
[1770006384178,4.5,101.32,101.29,14.80715133]
[1770006384368,4.5,101.34,101.31,14.80715133]
[1770006384567,4.5,101.34,101.3,14.80715133]
[1770006384770,4.5,101.36,101.33,14.80715133]
[1770006385381,0.1,101.4,101.29,4.27527085]
[1770006385382,4.5,101.38,101.34,14.80715133]
[1770006386099,4.5,101.38,101.25,0.28432314]
[1770006386100,4.5,101.37,101.32,14.80715133]
[1770006386301,4.5,101.37,101.33,14.80715133]
[1770006386778,4.5,101.39,101.34,14.80715133]
[1770006387176,4.5,101.39,101.35,14.80715133]
[1770006387378,0.1,101.4,101.37,14.80715133]
[1770006387590,0.1,101.4,101.24,76.72127895]
[1770006387591,4.5,101.37,101.24,76.72127895]
[1770006387788,4.5,101.37,101.33,14.80715133]
[1770006387985,4.5,101.39,101.34,14.80715133]
[1770006388190,4.5,101.37,101.32,14.80715133]
[1770006388684,0.14216157,101.36,101.32,14.80715133]
[1770006388895,4.64216157,101.36,101.31,14.80715133]
[1770006389081,0.1,101.4,101.35,14.80715133]
[1770006389282,0.1,101.4,101.37,14.80715133]
[1770006390182,4.6,101.4,101.31,4.27527085]
[1770006390388,4.6,101.4,101.35,14.80715133]
[1770006390602,4.5,101.38,101.32,14.80715133]
[1770006390786,4.5,101.37,101.32,14.80715133]
[1770006390978,4.5,101.34,101.19,49.30711372]
[1770006391302,4.5,101.34,101.28,14.80715133]
[1770006391303,0.14216157,101.33,101.28,14.80715133]
[1770006391493,0.14216157,101.33,101.29,14.80715133]
[1770006391693,0.14216157,101.31,101.27,14.80715133]
[1770006392195,19.4493129,101.31,101.25,14.80715133]
[1770006392377,4.64216157,101.31,101.27,14.80715133]
[1770006392980,4.5,101.33,101.28,14.80715133]
[1770006393182,4.5,101.33,101.29,14.80715133]
[1770006393610,4.5,101.35,101.31,14.80715133]
[1770006393984,4.5,101.34,101.29,14.80715133]
[1770006394214,4.5,101.34,101.24,4.27527085]
[1770006394500,4.5,101.32,101.28,14.80715133]
[1770006395008,4.5,101.34,101.29,14.80715133]
[1770006395184,14.80715133,101.31,101.19,27.34]
[1770006395393,4.5,101.29,101.24,14.80715133]
[1770006395582,4.5,101.29,101.2,4.27527085]
[1770006395784,4.5,101.28,101.23,14.80715133]
[1770006395984,4.5,101.28,101.24,14.80715133]
[1770006396394,4.5,101.31,101.26,14.80715133]
[1770006396790,4.5,101.31,101.22,4.27527085]
[1770006397082,4.5,101.28,101.17,10.52517947]
[1770006397407,4.5,101.25,101.21,14.80715133]
[1770006397603,4.5,101.26,101.2,14.80715133]
[1770006397784,4.5,101.24,101.18,14.80715133]
[1770006397984,4.5,101.24,101.11,0.2]
[1770006397985,4.5,101.26,101.21,14.80715133]
[1770006398306,4.5,101.23,101.19,14.80715133]
[1770006398702,4.5,101.29,101.22,14.80715133]
[1770006399016,4.5,101.26,101.22,14.80715133]
[1770006399229,4.5,101.28,101.23,14.80715133]
[1770006399393,4.5,101.28,101.24,14.80715133]
[1770006399586,4.5,101.28,101.23,14.80715133]
[1770006400087,4.5,101.27,101.24,14.80715133]
[1770006400389,4.5,101.27,101.23,14.80715133]
[1770006400596,4.5,101.29,101.25,14.80715133]
[1770006401207,4.5,101.29,101.24,14.80715133]
[1770006401398,4.5,101.29,101.25,14.80715133]
[1770006401780,4.5,101.29,101.24,14.80715133]
[1770006401987,4.5,101.29,101.25,14.80715133]
[1770006402188,4.5,101.29,101.24,14.80715133]
[1770006402388,4.5,101.29,101.25,14.80715133]
[1770006402590,4.5,101.29,101.24,14.80715133]
[1770006402890,19.30715133,101.29,101.24,14.80715133]
[1770006403102,4.5,101.27,101.22,14.80715133]
[1770006403293,4.5,101.26,101.22,14.80715133]
[1770006403503,4.5,101.26,101.23,14.80715133]
[1770006403903,4.5,101.28,101.2,4.27527085]
[1770006404218,4.5,101.26,101.21,14.80715133]
[1770006404425,4.5,101.25,101.2,14.80715133]
[1770006404606,4.5,101.27,101.22,14.80715133]
[1770006404788,4.5,101.27,101.23,14.80715133]
[1770006405120,19.30715133,101.27,101.19,4.27527085]
[1770006405312,4.5,101.27,101.22,14.80715133]
[1770006405815,4.5,101.26,101.14,69.00598953]
[1770006406003,4.5,101.25,101.2,14.80715133]
[1770006406415,19.30715133,101.25,101.2,14.80715133]
[1770006406716,4.5,101.24,101.19,14.80715133]
[1770006407011,4.5,101.24,101.18,14.80715133]
[1770006407012,4.5,101.23,101.18,14.80715133]
[1770006407233,4.5,101.23,101.19,14.80715133]
[1770006407718,4.5,101.22,101.17,14.80715133]
[1770006408018,4.5,101.22,101.19,14.80715133]
[1770006408511,4.5,101.22,101.17,14.80715133]
[1770006408817,19.30715133,101.21,101.16,14.80715133]
[1770006408993,4.5,101.2,101.16,14.80715133]
[1770006409397,14.80715133,101.22,101.16,14.80715133]
[1770006409711,4.5,101.2,101.15,14.80715133]
[1770006410032,14.80715133,101.17,101.11,15.00715133]
[1770006410321,19.30715133,101.16,101.11,0.2]
[1770006410500,14.80715133,101.15,101.11,0.2]
[1770006410816,4.5,101.16,101.11,15.00715133]
[1770006411013,4.5,101.15,101.11,0.2]
[1770006411322,4.5,101.14,101.11,0.2]
[1770006412003,14.80715133,101.15,101.11,0.2]
[1770006412210,4.5,101.17,101.12,14.80715133]
[1770006412406,4.5,101.15,101.11,15.00715133]
[1770006412712,4.5,101.15,101.12,14.80715133]
[1770006412921,4.5,101.15,101.11,0.2]
[1770006413089,4.5,101.14,101.11,0.2]
[1770006413505,14.80715133,101.14,101.11,0.2]
[1770006413724,14.80715133,101.14,101.06,0.2]
[1770006413725,4.4,101.12,101.07,14.80715133]
[1770006414011,19.20715133,101.14,101.08,14.80715133]
[1770006414210,4.4,101.16,101.11,14.80715133]
[1770006414412,4.4,101.15,101.11,14.80715133]
[1770006414595,4.4,101.15,101.1,14.80715133]
[1770006415193,4.4,101.15,101.06,4.47527085]
[1770006415194,4.4,101.14,101.07,4.47527085]
[1770006415605,4.4,101.14,101.1,14.80715133]
[1770006415820,4.4,101.14,101.08,0.2]
[1770006416296,4.4,101.14,101.1,14.80715133]
[1770006417497,4.4,101.15,101.1,14.80715133]
[1770006417998,19.20715133,101.13,101.07,0.2]
[1770006418312,4.4,101.15,101.1,14.80715133]
[1770006419100,4.4,101.14,101.1,14.80715133]
[1770006420115,4.4,101.15,101.11,14.80715133]
[1770006420319,19.20715133,101.17,101.12,14.80715133]
[1770006420528,14.80715133,101.15,101.06,0.2]
[1770006420700,4.4,101.14,101.09,15.00715133]
[1770006421016,19.20715133,101.2,101.13,15.00715133]
[1770006421329,4.4,101.17,101.12,14.80715133]
[1770006421612,4.4,101.17,101.11,0.2]
[1770006421613,4.4,101.17,101.13,14.80715133]
[1770006421818,4.4,101.14,101.09,14.80715133]
[1770006422122,4.4,101.14,101.1,14.80715133]
[1770006422423,4.4,101.11,101.06,15.00715133]
[1770006422713,19.17560142,101.08,101.01,0.4]
[1770006422917,4.36845009,101.08,101.02,15.20715133]
[1770006423098,4.36845009,101.08,101.02,0.4]
[1770006423298,19.17560142,101.08,101.03,14.80715133]
[1770006423598,4.36845009,101.07,101.02,0.4]
[1770006423795,4.36845009,101.07,101.03,14.80715133]
[1770006424009,27.5,101.12,101.01,0.2]
[1770006424010,4.36845009,101.04,101.01,0.2]
[1770006424609,4.36845009,101.02,100.97,15.20715133]
[1770006424813,4.36845009,101.02,100.98,14.80715133]
[1770006425002,4.36845009,101.02,100.99,14.80715133]
[1770006425206,9.891581,101.1,100.99,14.80715133]
[1770006425207,4.36845009,101.11,101.01,14.80715133]
[1770006425432,4.36845009,101.06,101.01,14.80715133]
[1770006425724,4.36845009,101.04,100.99,14.80715133]
[1770006426218,4.36845009,101.04,101.0,14.80715133]
[1770006426417,4.36845009,101.04,100.99,14.80715133]
[1770006426806,4.36845009,101.02,100.97,14.80715133]
[1770006427014,4.36845009,101.02,100.95,0.6]
[1770006427312,27.5,101.05,100.93,0.6]
[1770006427313,4.36845009,101.0,100.93,0.6]
[1770006427516,4.36845009,101.0,100.96,14.80715133]
[1770006427704,4.36845009,101.0,100.95,14.80715133]
[1770006428112,4.36845009,101.0,100.94,0.6]
[1770006428304,4.36845009,101.0,100.94,14.80715133]
[1770006428305,4.2,100.99,100.94,14.80715133]
[1770006428505,4.2,101.01,100.96,14.80715133]
[1770006428728,4.2,101.01,100.97,14.80715133]
[1770006429206,4.2,101.01,100.95,0.6]
[1770006429207,4.2,101.03,100.98,14.80715133]
[1770006429406,4.2,101.02,100.98,14.80715133]
[1770006429608,4.2,101.04,101.0,14.80715133]
[1770006429802,4.2,101.04,100.98,0.6]
[1770006430008,4.2,101.04,101.0,14.80715133]
[1770006430409,4.2,101.03,100.98,14.91153644]
[1770006430622,4.2,101.01,100.96,14.91153644]
[1770006430952,4.2,101.0,100.96,14.91153644]
[1770006431110,4.2,101.0,100.94,0.6]
[1770006431111,4.2,101.0,100.95,14.91153644]
[1770006431421,4.2,100.99,100.94,14.91153644]
[1770006432027,19.11153644,100.97,100.91,15.81152724]
[1770006432214,19.11153644,100.96,100.91,0.8999908]
[1770006432408,19.11153644,100.96,100.91,15.81152724]
[1770006432723,4.2,100.98,100.93,14.91153644]
[1770006433019,4.2,100.98,100.92,0.6]
[1770006433020,4.2,100.97,100.92,0.6]
[1770006433211,4.2,100.97,100.92,15.51153644]
[1770006433600,4.2,100.97,100.91,0.2999908]
[1770006433810,4.2,100.97,100.92,14.91153644]
[1770006434411,4.2,100.97,100.92,9.81832646]
[1770006434610,4.2,100.96,100.91,10.11831726]
[1770006435021,4.2,100.95,100.91,0.2999908]
[1770006435421,9.81832646,100.92,100.87,0.8999908]
[1770006435621,4.07359036,100.94,100.88,0.8999908]
[1770006435927,4.07359036,100.93,100.88,9.81832646]
[1770006436126,4.07359036,100.91,100.84,6.28371216]
[1770006436429,4.07359036,100.9,100.86,9.81832646]
[1770006436728,4.07359036,100.93,100.89,9.81832646]
[1770006437031,4.07359036,100.95,100.91,9.81832646]
[1770006437329,4.07359036,100.94,100.88,0.8999908]
[1770006437506,4.07359036,100.94,100.9,9.81832646]
[1770006437705,4.07359036,100.96,100.92,9.81832646]
[1770006437929,4.07359036,100.96,100.91,9.81832646]
[1770006438116,4.07359036,100.96,100.92,9.81832646]
[1770006438318,4.07359036,100.95,100.9,9.81832646]
[1770006438832,4.07359036,100.95,100.91,9.81832646]
[1770006439445,4.07359036,100.94,100.89,9.81832646]
[1770006439728,4.07359036,100.96,100.92,9.81832646]
[1770006439930,4.07359036,100.95,100.91,9.81832646]
[1770006440129,4.07359036,100.95,100.92,9.81832646]
[1770006440339,4.07359036,100.95,100.93,9.81832646]
[1770006440721,4.07359036,100.97,100.94,9.81832646]
[1770006441034,4.07359036,100.97,100.95,9.81832646]
[1770006441336,4.07359036,100.97,100.96,9.81832646]
[1770006441930,4.07359036,100.97,100.94,9.81832646]
[1770006442132,4.07359036,100.97,100.95,9.81832646]
[1770006442515,4.07359036,100.97,100.96,9.81832646]
[1770006442721,4.07359036,100.99,100.96,9.81832646]
[1770006443138,4.07359036,100.99,100.97,9.81832646]
[1770006443314,4.07359036,101.01,100.97,9.81832646]
[1770006443513,4.07359036,101.0,100.97,9.81832646]
[1770006443721,4.07359036,101.0,100.98,9.81832646]